Cogmind - Beta 17 @@@ ROGUE MODE // 2026.07.13 @ 17:10:18 Player: Skysub Result: Self-destructed Performance ------------- Evolutions (2) 1000 Regions Visited (5) 1000 Robots Destroyed (1) 5 Value Destroyed (5) 5 Prototype IDs (0) 0 Alien Tech Used (0) 0 Bonus (400) 400 TOTAL SCORE: 2410 Bonus ------- Pacifist 200 Entered Garrisons 200 Cogmind --------- Core Integrity 305/550 Matter 194/300 Energy 100/100 System Corruption 0% Temperature Cool (0) Movement Core (50) Location -8/Materials Parts ------- > --- POWER (1) -------- (None) > --- PROPULSION (4) --- (None) > --- UTILITY (4) ------ (None) > --- WEAPON (2) ------- Maul > --- INVENTORY (5) ---- Ion Engine Weight Redist. System Peak State ------------ > --- POWER ------------ (None) > --- PROPULSION ------- (None) > --- UTILITY ---------- (None) > --- WEAPON ----------- Maul > --- INVENTORY -------- Ion Engine Weight Redist. System [Rating: 2] Favorites ----------- Power None Propulsion None Utility None Weapon Maul Impact Weapon Maul Build | -11 -10 -9 -8 -8 -8 ------- Run | Yrd Mat Mat Mat Gar Mat Slots Evolved 4 | . . 2 2 . . Power . | . . . . . . Propulsion 2 | . . 1 1 . . Utility 2 | . . 1 1 . . Weapon . | . . . . . . Parts Attached 1 | . . 1 . . . Power . | . . . . . . Engine . | . . . . . . Core . | . . . . . . Reactor . | . . . . . . Propulsion . | . . . . . . Treads . | . . . . . . Leg . | . . . . . . Wheel . | . . . . . . Hover . | . . . . . . Flight . | . . . . . . Utility . | . . . . . . Device . | . . . . . . Storage . | . . . . . . Processor . | . . . . . . Hackware . | . . . . . . Protection . | . . . . . . Artifact . | . . . . . . Weapon 1 | . . 1 . . . Energy Gun . | . . . . . . Energy Cannon . | . . . . . . Ballistic Gun . | . . . . . . Ballistic Cannon . | . . . . . . Launcher . | . . . . . . Special Weapon . | . . . . . . Impact Weapon 1 | . . 1 . . . Slashing Weapon . | . . . . . . Piercing Weapon . | . . . . . . Special Melee Weapon . | . . . . . . Unidentified Prototypes . | . . . . . . Parts Lost . | . . . . . . Power . | . . . . . . Propulsion . | . . . . . . Utility . | . . . . . . Weapon . | . . . . . . Highest Loss Streak . | . . . . . . To Critical Strikes . | . . . . . . Average Backups 2 | . 1 2 3 2 2 Power . | . 1 1 1 1 1 Propulsion . | . . . . . . Utility . | . . . 1 1 1 Weapon . | . . . 1 . . Tool/Special . | . . . . . . Unused Backups 2 | . . . . . 2 Power 1 | . . . . . 1 Propulsion . | . . . . . . Utility 1 | . . . . . 1 Weapon . | . . . . . . Tool/Special . | . . . . . . Average Slot Usage (%) 3 | . . 4 . 3 9 Impact Weapon 3 | . . 4 . 3 9 Peak Build Rating 2 | . . 2 . 2 2 Average Rating . | . . . . . 2 On Entrance . | . . . . . 2 Avg Prop Armor Cover (%) . | . . . . . . Naked Turns 183 | . 51 45 5 82 . Heaviest Build 3 | . . 3 . 3 3 Greatest Support 3 | 3 3 3 3 3 3 Greatest Overweight (x) . | . . . . . . Average Overweight (x) . | . . . . . . Largest Inventory Capacity 5 | 5 5 5 5 5 5 Average Capacity 5 | 5 5 5 5 5 5 Most Carried 3 | 1 1 3 3 3 2 Average Carried 2 | . 1 2 3 2 2 Final Capacity 5 | 5 5 5 5 5 5 Final Carried 3 | 1 1 3 3 2 2 Class Distribution -------------------- 100% | Mutant Dominant Class ---------------- Mutant | -10/Materials Mutant | -9/Materials Mutant | -8/Materials Mutant | -8/Garrison Mutant | -8/Materials Resources | -11 -10 -9 -8 -8 -8 ----------- Run | Yrd Mat Mat Mat Gar Mat Matter Collected 134 | 118 . 16 . . . Remotely . | . . . . . . Salvage Created 16 | . . 16 . . . Parts . | . . . . . . Haulers Intercepted . | . . . . . . Recyclers Shooed . | . . . . . . Parts Field Recycled . | . . . . . . Retrieved Matter . | . . . . . . Parts Self-Destructed . | . . . . . . Prevented . | . . . . . . Parts Restored . | . . . . . . Kills | -11 -10 -9 -8 -8 -8 ------- Run | Yrd Mat Mat Mat Gar Mat Combat Hostiles Destroyed . | . . . . . . Classes Destroyed 1 | . . 1 . . . Builder 1 | . . 1 . . . Best Kill Streak 1 | . . 1 . . . Combat Bots Only . | . . . . . . Max Kills in Single Turn 1 | . . 1 . . . Gunslinging . | . . . . . . Exploded . | . . . . . . Melee . | . . . . . . Uniques/NPCs Destroyed . | . . . . . . Combat | -11 -10 -9 -8 -8 -8 -------- Run | Yrd Mat Mat Mat Gar Mat Hostile Shots Fired 102 | . 13 57 . 30 2 Missed 32 | . 5 17 . 9 1 Hits 70 | . 8 40 . 21 1 Projectile 70 | . 8 40 . 21 1 Critical Strikes 2 | . . 1 . 1 . Damage Taken 745 | . 85 397 . 250 13 Core 674 | . 85 344 . 232 13 Absorbed by Shields 16 | . . . . 16 . Core Remaining (%) 60 | 100 66 14 . . . Volleys Fired . | . . . . . . Largest . | . . . . . . Hottest . | . . . . . . Shots Fired . | . . . . . . Gun . | . . . . . . Cannon . | . . . . . . Launcher . | . . . . . . Special . | . . . . . . Kinetic . | . . . . . . Thermal . | . . . . . . Explosive . | . . . . . . Electromagnetic . | . . . . . . Robot Hit Streak . | . . . . . . Robot Miss Streak . | . . . . . . Penetration Max . | . . . . . . Secondary Targets . | . . . . . . Shots Hit Robots 1 | . . 1 . . . Core Hits . | . . . . . . Critical Kills . | . . . . . . Critical Parts Destroyed . | . . . . . . Critical Strikes . | . . . . . . Melee Attacks 9 | . . 2 . 7 . Impact 9 | . . 2 . 7 . Slashing . | . . . . . . Piercing . | . . . . . . Sneak Attacks 1 | . . 1 . . . Combat Hostiles . | . . . . . . Follow-up Attacks . | . . . . . . Damage Inflicted 103 | . . 103 . . . Guns . | . . . . . . Cannons . | . . . . . . Explosions . | . . . . . . Melee 103 | . . 103 . . . Ramming . | . . . . . . Kinetic . | . . . . . . Thermal . | . . . . . . Explosive . | . . . . . . Electromagnetic . | . . . . . . Impact 103 | . . 103 . . . Slashing . | . . . . . . Piercing . | . . . . . . Highest Corruption 2 | . 2 . . . . Average Corruption 2 | . 2 . . . . Corruption Purged . | . . . . . . Corruption Blocked . | . . . . . . Overload Shots . | . . . . . . Overflow Damage 83 | . . 83 . . . Projectiles . | . . . . . . Explosions . | . . . . . . Melee 83 | . . 83 . . . Knockbacks 1 | . . 1 . . . Impact 1 | . . 1 . . . Kinetic . | . . . . . . Secondary . | . . . . . . Self-Inflicted Damage . | . . . . . . Shots . | . . . . . . Rammed . | . . . . . . Targets Rammed . | . . . . . . Kicked . | . . . . . . Crushed . | . . . . . . Highest Temperature . | . . . . . . Average Temperature . | . . . . . . Received Heat Transfer 72 | . 6 57 . 9 . Siege Activations . | . . . . . . Martial Activations . | . . . . . . Shielding Activations . | . . . . . . Robots Disrupted . | . . . . . . Combat Hostiles . | . . . . . . Robots Corrupted 1 | . . 1 . . . Combat Hostiles . | . . . . . . Parts Fried . | . . . . . . Impact Corruptions 3 | . . 3 . . . Robots Melted . | . . . . . . Combat Hostiles . | . . . . . . Parts Melted . | . . . . . . Heat Transferred . | . . . . . . Parts Sabotaged . | . . . . . . Parts Stolen . | . . . . . . Parts Stripped . | . . . . . . Power Chain Reactions . | . . . . . . Alert | -11 -10 -9 -8 -8 -8 ------- Run | Yrd Mat Mat Mat Gar Mat Maximum Alert Level . | . . . . . . Low Security (%) 100 | 100 100 100 100 100 100 Level 1 . | . . . . . . Level 2 . | . . . . . . Level 3 . | . . . . . . Level 4 . | . . . . . . Level 5 . | . . . . . . High Security . | . . . . . . Max Security . | . . . . . . Peak Influence 55 | . 35 14 3 55 26 Initial 26 | . . 14 3 4 26 Average 19 | . 8 7 3 30 26 Influence Increases 119 | . 45 19 4 51 . Destroy 0b10 Robot/NC 5 | . . 5 . . . Successful Hack 17 | . . 13 4 . . Destroy Structure 22 | . . 1 . 21 . Lose Combat Pursuer 75 | . 45 . . 30 . Influence Decreases 93 | . 10 45 6 3 29 Entered New Map 59 | . . 21 6 3 29 Time Decay 34 | . 10 24 . . . Squads Dispatched 2 | . . 2 . . . Investigation 2 | . . 2 . . . Extermination . | . . . . . . Reinforcement . | . . . . . . Assault . | . . . . . . Garrison . | . . . . . . Intercept . | . . . . . . Searches Triggered . | . . . . . . Construction Impeded . | . . . . . . Haulers Reinforced . | . . . . . . Active Scanning Responses . | . . . . . . Cargo Convoy Interrupts . | . . . . . . Stealth | -11 -10 -9 -8 -8 -8 --------- Run | Yrd Mat Mat Mat Gar Mat Distress Signals . | . . . . . . Communications Jammed . | . . . . . . Distress Signals . | . . . . . . Times Spotted 35 | . 10 17 . 6 2 Peak Tracking Total 18 | . 8 18 . 5 3 Tactical Retreats 2 | . 1 . . 1 . Traps | -11 -10 -9 -8 -8 -8 ------- Run | Yrd Mat Mat Mat Gar Mat Traps Triggered 3 | . 2 . . 1 . Indirectly . | . . . . . . Trap Hack Attempts . | . . . . . . Triggered . | . . . . . . Disarmed . | . . . . . . Reprogrammed . | . . . . . . Reused . | . . . . . . Traps Extracted . | . . . . . . Installed . | . . . . . . Triggered . | . . . . . . Machines | -11 -10 -9 -8 -8 -8 ---------- Run | Yrd Mat Mat Mat Gar Mat Machines Disabled . | . . . . . . Max in Single Turn . | . . . . . . Machines Repaired . | . . . . . . Machines Dismantled . | . . . . . . Machines Sabotaged . | . . . . . . Overloaded Fab Kills . | . . . . . . Hacking | -11 -10 -9 -8 -8 -8 --------- Run | Yrd Mat Mat Mat Gar Mat Machines Accessed 3 | . . 2 1 . . Terminals 2 | . . 2 . . . Fabricators . | . . . . . . Repair Stations . | . . . . . . Recycling Units . | . . . . . . Scanalyzers . | . . . . . . Garrison Access 1 | . . . 1 . . Total Hacks 11 | . . 10 1 . . Successful 5 | . . 4 1 . . Failed 6 | . . 6 . . . Catastrophic 2 | . . 2 . . . Database Lockouts . | . . . . . . Manual 9 | . . 9 . . . Terminals 10 | . . 10 . . . Fabricators . | . . . . . . Repair Stations . | . . . . . . Recycling Units . | . . . . . . Scanalyzers . | . . . . . . Garrison Access 1 | . . . 1 . . Terminal Hacks 2 | . . 2 . . . Terminal Index 1 | . . 1 . . . Zone Layout 1 | . . 1 . . . Fabricator Hacks . | . . . . . . Repair Station Hacks . | . . . . . . Recycling Unit Hacks . | . . . . . . Scanalyzer . | . . . . . . Garrison Access Hacks 1 | . . . 1 . . Unlock Access 1 | . . . 1 . . Unauthorized Hacks 2 | . . 2 . . . Terminals 2 | . . 2 . . . Botnet 2 | . . 2 . . . Fabricators . | . . . . . . Repair Stations . | . . . . . . Recycling Units . | . . . . . . Scanalyzers . | . . . . . . Garrison Access . | . . . . . . Data Cores Recovered . | . . . . . . Used . | . . . . . . Hacking Detections 2 | . . 2 . . . Full Trace Events 2 | . . 2 . . . Feedback Events . | . . . . . . Feedback Blocked . | . . . . . . Robot Schematics Acquired . | . . . . . . Robots Built . | . . . . . . Authchips . | . . . . . . Time . | . . . . . . Total Robot Build Rating . | . . . . . . Part Schematics Acquired . | . . . . . . Parts Built . | . . . . . . Authchips . | . . . . . . Time . | . . . . . . Total Part Build Rating . | . . . . . . Part Studies Acquired . | . . . . . . Parts Repaired . | . . . . . . Time . | . . . . . . Parts Recycled . | . . . . . . Recycled Matter . | . . . . . . Retrieved Matter . | . . . . . . Retrieved Components . | . . . . . . Parts Scanalyzed . | . . . . . . Part Schematics Acquired . | . . . . . . Parts Damaged . | . . . . . . Bothacking | -11 -10 -9 -8 -8 -8 ------------ Run | Yrd Mat Mat Mat Gar Mat Used RIF Installer . | . . . . . . Robots Hacked . | . . . . . . Non-combat . | . . . . . . Combat . | . . . . . . Robot Hacks Applied . | . . . . . . Relay Couplers Released . | . . . . . . Fabnet Peak Effective % . | . . . . . . Robots Rewired . | . . . . . . Allies Hacked . | . . . . . . Hacks Repelled . | . . . . . . Allies | -11 -10 -9 -8 -8 -8 -------- Run | Yrd Mat Mat Mat Gar Mat Total Allies . | . . . . . . Largest Group . | . . . . . . Highest-Rated Group . | . . . . . . Highest-Rated Ally . | . . . . . . Total Orders . | . . . . . . Ally Attacks . | . . . . . . Total Damage . | . . . . . . Kills . | . . . . . . Allies Corrupted . | . . . . . . Allies Melted . | . . . . . . Intel | -11 -10 -9 -8 -8 -8 ------- Run | Yrd Mat Mat Mat Gar Mat Active Infowar (turns) . | . . . . . . Robot Analysis Total . | . . . . . . Derelict Logs Recovered . | . . . . . . Drone Launches . | . . . . . . Drone Recoveries . | . . . . . . Exploration | -11 -10 -9 -8 -8 -8 ------------- Run | Yrd Mat Mat Mat Gar Mat Turns Passed 310 | 11 51 74 5 155 14 Spaces Moved 522 | 20 102 126 8 240 26 Core 522 | 20 102 126 8 240 26 Treads . | . . . . . . Legs . | . . . . . . Wheels . | . . . . . . Hover . | . . . . . . Flight . | . . . . . . Fastest Speed 50 | 50 50 50 50 50 50 Average Speed 50 | 50 50 50 50 50 50 Slowest Speed 50 | 50 50 50 50 50 50 Overloaded Moves . | . . . . . . Propulsion Burnouts . | . . . . . . Robots Hopped . | . . . . . . Potential Cave-ins . | . . . . . . Cave-ins Triggered . | . . . . . . Exploration Rate (%) 19 | 4 37 27 2 41 6 Regions Visited 5 Branch Regions . Pre-discovered Areas . | . . . . . . Known Exits Taken 1 | . . . 1 . . Unknown Exits Taken 3 | 1 1 1 . . . Scrap Searched . | . . . . . . Spaces Dug 2 | . . 1 . 1 . Terrain Destroyed 2 | . . 1 . 1 . Melee 2 | . . 1 . 1 . Projectile . | . . . . . . AOE . | . . . . . . Terrain Rammed . | . . . . . . Walls Destroyed . | . . . . . . Machines Disabled . | . . . . . . Actions | -11 -10 -9 -8 -8 -8 --------- Run | Yrd Mat Mat Mat Gar Mat Total 547 | 20 101 133 8 259 26 Wait . | . . . . . . Move 516 | 19 101 125 8 237 26 Hop . | . . . . . . Pick Up 3 | 1 . 2 . . . Fast Attach . | . . . . . . Attach 4 | . . 2 . 2 . Detach 3 | . . 2 . 1 . Swap . | . . . . . . Drop . | . . . . . . Fire . | . . . . . . Melee 9 | . . 2 . 7 . Ram . | . . . . . . Kick . | . . . . . . Crush . | . . . . . . Escape Stasis 12 | . . . . 12 . Rewire . | . . . . . . Trap . | . . . . . . Miscellaneous . | . . . . . . Route ------- -11/Scrapyard -10/Materials (discovered 2 exits: *Mat / [*Min]) -9/Materials -8/Materials -8/Garrison (discovered 2 exits: [*Mat x2]) -8/Materials History --------- Turn | Location | Event 3 | -11/Scrapyard | Discovered new exit (range 16) 12 | -11/Scrapyard | Entered Materials 33 | -10/Materials | Discovered new exit (range 8) 56 | -10/Materials | Discovered new exit (range 16) 63 | -10/Materials | Entered another Materials area 63 | -9/Materials | Evolved 2 slots: Propulsion x1, Utility x1 126 | -9/Materials | Core integrity fell below 50% 129 | -9/Materials | Discovered new exit (range 8) 137 | -9/Materials | Core integrity fell below 20% 137 | -9/Materials | Entered another Materials area 137 | -8/Materials | Evolved 2 slots: Propulsion x1, Utility x1 142 | -8/Materials | Identified exit to Garrison 142 | -8/Materials | Entered Garrison 152 | -8/Garrison | Triggered checkpoint 168 | -8/Garrison | Triggered checkpoint 206 | -8/Garrison | Discovered new exit (range 12) 212 | -8/Garrison | Attempted to access garrison exit controls, blocked by remote lockdown 232 | -8/Garrison | Triggered checkpoint 264 | -8/Garrison | Triggered checkpoint 292 | -8/Garrison | Discovered new exit (range 10) 297 | -8/Garrison | Entered Materials 311 | -8/Materials | Self-destructed Last Messages --------------- 00212_ Attempting to access garrison exit controls... 00212_ Remote lockdown engaged. 00216_ Slug penetrates Wall. 00219_ Penetrated by Slug. 00219_ Door Terminal disabled. 00232_ Beams of light sweep through the air. An alarm sounds. 00242_ Penetrated by Slug. 00250_ Slug penetrates Wall. 00254_ ALERT: Dispatching investigation squad to Materials. 00262_ Penetrated by Slug. 00264_ Beams of light sweep through the air. An alarm sounds. 00292_ EXIT=FOUND LOCATION=UNKNOWN GOAL=ESCAPE 00302_ O-16 Technician: "IFF HANDSHAKE FAILED. SECURING TERMINAL." Map ----- +----------------------------------------------------+ | | | | | ?????????????????????????????????????????????????? | | ?????????????????????????????????????????????????? | | ?????????????????????????????????????????????????? | | ?????????????????????????????????????????????????? | | ????????????????#######################??????????? | | ????????????????# #??????????? | | ????????????????# #??????????? | | ????????????????# #??????????? | | ????????????????###########+####### #??????????? | | ????????????????????????# = #?????????????????? | | ????????????????????????# #?????????????????? | | ????????????????????????# #?????????????????? | | ????????????????????????# """ #?????????????????? | | ????????????????????????# """ #?????????????????? | | ????????????????????????# """ [#?????????????????? | | ????????????????????????#+######?????????????????? | | ????????????????????????# #??????????????????????? | | ????????????????????????# #??????????????????????? | | ????????????????????????# #??????????????????????? | | ????????????????????????# #??????????????????????? | | ????????????????????????# #??????????????????????? | | ????????????????????????# #??????????????????????? | | ????????????????????????# ########???????????????? | | ????????????????????????#@ a #?????????? | | ????????????????????????# Y #?????????? | | ????????????????????????# #?????????? | | ????????????????????????# ####r #?????????? | | ????????????????????????# #??????###?????????? | | ????????????????????????# #??????????????????? | | ????????????????????????# u #??????????????????? | | ????????????????????????+ #??????????????????? | | ????????????????????????# #??????????????????? | | ????????????????????????? #??????????????????? | | ????????????????????????? #??????????????????? | | ????????????????????????? #??????????????????? | | ????????????????????????? #??????????????????? | | ????????????????????????? #??????????????????? | | ????????????????????????? ???????????????????? | | ????????????????????????? a ?????????????????????? | | ?????????????????????????????????????????????????? | | ?????????????????????????????????????????????????? | | ?????????????????????????????????????????????????? | | ?????????????????????????????????????????????????? | | ?????????????????????????????????????????????????? | | ?????????????????????????????????????????????????? | | ?????????????????????????????????????????????????? | | ?????????????????????????????????????????????????? | | ?????????????????????????????????????????????????? | +----------------------------------------------------+ Best States ------------- Heat Dissipation 31 Energy Generation 5 Energy Capacity 100 Matter Stores 224 Matter Capacity 300 Sight Range 16 Terrain Scan Density 10 Evasion (%) 50 Item Schematics ----------------- None Robot Schematics ------------------ None Fabricated ------------ Nothing Repaired ---------- Nothing Studied --------- None Alien Tech Used ----------------- None Achievements -------------- None Challenges ------------ None Game ------ Seed MatterLauncherStreamer Manual? 0 Play Time 00:05:05 Cumulative 324.3 hours Start 2026.07.13 @ 17:05:27 End 2026.07.13 @ 17:10:18 Sessions 1 Manual Loads 0 Difficulty Rogue Special Mode None Game No. 396 Rogue 396 Adventurer 0 Explorer 0 Win Type - Total 22 Types 14/0/3/1/1/0/1/1/0/1 Lore% 78 Gallery% 74 Achievement% 65 Wizard Run 0 Options --------- Layout 1 ASCII 0 Keyboard 1 Movement Arrows Keybinds 0 Fullscreen 2 Font 36/Smallcaps Map View 50x40 Zoom Use 0% Tactical HUD 1 Map Filters NONE Filters NONE Steam 1 RUN: fd8ceb95-083e-4be8-bbe7-9af20988c3fd